Cogmind - Beta 17.1 @@@ ROGUE MODE // 2026.09.19 @ 15:02:52 Player: Zaje Result: Destroyed by C-35 Carver with Carbide Saw Performance ------------- Evolutions (6) 3000 Regions Visited (13) 2600 Robots Destroyed (121) 605 Value Destroyed (2905) 2905 Prototype IDs (29) 580 Alien Tech Used (0) 0 Bonus (300) 300 TOTAL SCORE: 9990 Bonus ------- Aligned with FarCom 300 Cogmind --------- Core Integrity 0/1150 Matter 285/300 Energy 83/100 System Corruption 7% Temperature Cool (0) Movement Core (50) Location -4/Factory Parts ------- > --- POWER (1) -------- (None) > --- PROPULSION (8) --- (None) > --- UTILITY (8) ------ Nanoactuators > --- WEAPON (2) ------- (None) > --- INVENTORY (5) ---- Improved Deuterium Engine Microactuators Graphene Brace System Shield Peak State ------------ > --- POWER ------------ Improved Deuterium Engine > --- PROPULSION ------- Antigrav System Antigrav System VTOL Module VTOL Module Cooled VTOL Module Nuclear Pulse Thruster Field Propulsion Array > --- UTILITY ---------- Advanced Weight Redist. System Machine Analyzer Advanced Sensor Array Advanced Signal Interpreter Graphene Brace Hacking Suite Hacking Suite System Shield > --- WEAPON ----------- Precision Grenade Launcher Katana > --- INVENTORY -------- Improved Deuterium Engine Improved Deuterium Engine Microactuators Advanced ECM Suite System Shield [Rating: 85] Favorites ----------- Power Heavy Ion Engine Engine Heavy Ion Engine Power Core Light Nuclear Core Propulsion Light Treads Treads Light Treads Leg Carbon-fiber Leg Hover Unit Antigrav System Flight Unit Improved VTOL Module Utility Terrain Scan Processor Device Seismic Detector Storage Large Storage Unit Processor Terrain Scan Processor Hackware Hacking Suite Protection Medium Armor Plating Weapon Assault Rifle Ballistic Gun Assault Rifle Launcher Precision Grenade Launcher Slashing Weapon Katana Build | -11 -10 -10 -9 -9 -9 -8 -8 -7 -7 -7 -6 -5 -4 ------- Run | Yrd Mat Min Mat Min Exi Min Mat Fac Low Low Fac Fac Fac Slots Evolved 12 | . . . 2 . . . 2 2 . . 2 2 2 Power . | . . . . . . . . . . . . . . Propulsion 6 | . . . 1 . . . 1 1 . . . 1 2 Utility 6 | . . . 1 . . . 1 1 . . 2 1 . Weapon . | . . . . . . . . . . . . . . Parts Attached 96 | 7 1 1 15 3 2 2 30 5 2 . 4 14 10 Power 14 | 1 . . 2 . . . 5 . . . 1 4 1 Engine 8 | 1 . . 2 . . . 2 . . . 1 1 1 Core 6 | . . . . . . . 3 . . . . 3 . Reactor . | . . . . . . . . . . . . . . Propulsion 36 | 2 . . 7 1 1 1 11 1 1 . . 6 5 Treads 12 | 2 . . 7 1 . 1 1 . . . . . . Leg 6 | . . . . . . . 6 . . . . . . Wheel . | . . . . . . . . . . . . . . Hover 2 | . . . . . . . . . . . . . 2 Flight 16 | . . . . . 1 . 4 1 1 . . 6 3 Utility 29 | 2 1 . 4 . 1 . 8 3 1 . 3 2 4 Device 11 | 1 . . 1 . 1 . . 2 . . 1 1 4 Storage 3 | 1 1 . 1 . . . . . . . . . . Processor 4 | . . . 1 . . . 2 . . . . 1 . Hackware 4 | . . . . . . . 1 1 . . 2 . . Protection 7 | . . . 1 . . . 5 . 1 . . . . Artifact . | . . . . . . . . . . . . . . Weapon 17 | 2 . 1 2 2 . 1 6 1 . . . 2 . Energy Gun . | . . . . . . . . . . . . . . Energy Cannon . | . . . . . . . . . . . . . . Ballistic Gun 11 | 2 . 1 2 1 . . 5 . . . . . . Ballistic Cannon . | . . . . . . . . . . . . . . Launcher 4 | . . . . 1 . 1 . 1 . . . 1 . Special Weapon . | . . . . . . . . . . . . . . Impact Weapon . | . . . . . . . . . . . . . . Slashing Weapon 2 | . . . . . . . 1 . . . . 1 . Piercing Weapon . | . . . . . . . . . . . . . . Special Melee Weapon . | . . . . . . . . . . . . . . Unidentified Prototypes 5 | . . . 1 . 1 . 1 1 . . . 1 . Parts Lost 35 | . . . 1 1 . . 7 . 1 . 1 11 13 Power 5 | . . . . . . . 2 . . . . 2 1 Propulsion 20 | . . . . . . . 4 . 1 . . 6 9 Utility 8 | . . . 1 1 . . 1 . . . 1 1 3 Weapon 2 | . . . . . . . . . . . . 2 . Highest Loss Streak 10 | . . . 1 1 . . 4 . 1 . 1 8 10 To Critical Strikes . | . . . . . . . . . . . . . . Average Backups 10 | 2 6 7 9 14 14 11 14 5 4 5 4 4 4 Power 1 | . 1 1 1 1 2 2 1 1 . 1 1 . 1 Propulsion 3 | 1 2 3 3 7 4 4 3 . . . . . . Utility 2 | . . 1 1 3 3 3 5 2 2 2 1 2 2 Weapon 2 | . 1 2 3 2 3 2 4 1 2 2 2 1 . Tool/Special . | . . . . . . . . . . . . . . Unused Backups 14 | 1 . . . . 2 . 6 1 . 1 1 . 2 Power 3 | 1 . . . . . . 1 . . . . . 1 Propulsion 3 | . . . . . 2 . 1 . . . . . . Utility 7 | . . . . . . . 3 1 . 1 1 . 1 Weapon 1 | . . . . . . . 1 . . . . . . Tool/Special . | . . . . . . . . . . . . . . Average Slot Usage (%) 90 | . 100 100 88 88 69 100 96 99 98 100 97 75 72 Engine 7 | . 14 14 11 11 11 11 3 . . . 4 2 4 Core 1 | . . . . . . . 5 7 7 7 1 . . Treads 19 | . 28 28 33 33 32 33 7 . . . . . . Leg 5 | . . . . . . . 25 . . . . . . Flight 5 | . . . . . . . . 38 36 38 33 22 20 Device 6 | . 14 14 5 . . 11 3 14 10 7 6 11 12 Storage 8 | . 14 14 11 11 11 11 9 . . . . . . Processor 7 | . . . 3 11 11 11 11 7 7 7 6 5 8 Hackware 3 | . . . . . . . . 13 15 15 24 21 12 Protection 3 | . . . 2 . . . 11 1 4 7 5 . . Ballistic Gun 15 | . 28 28 22 21 2 19 17 . . . . . . Launcher 1 | . . . . . . 2 . 7 7 7 6 2 2 Slashing Weapon 1 | . . . . . . . . 7 7 7 6 5 4 Peak Build Rating 85 | 7 7 7 15 15 16 16 35 44 44 42 53 57 85 Average Rating 21 | 6 7 7 11 13 12 16 27 43 42 41 50 44 56 On Entrance 24 | . 7 7 7 15 13 16 16 33 44 42 41 53 43 Avg Prop Armor Cover (%) 11 | . . . . . . . 5 . . . . 19 10 Naked Turns 56 | . . . . . . . . . . . . . 56 Heaviest Build 45 | 13 18 18 38 39 32 33 45 18 17 17 22 23 23 Greatest Support 80 | 40 40 40 60 60 60 60 80 25 25 24 24 24 43 Greatest Overweight (x) 11 | . . . . . . . 11 . . . . 1 1 Average Overweight (x) . | . . . . . . . . . . . . . . Largest Inventory Capacity 15 | 8 10 10 15 15 15 15 15 15 5 5 5 5 5 Average Capacity 11 | 7 9 10 10 15 15 15 15 5 5 5 5 5 5 Most Carried 15 | 4 7 8 14 15 15 12 15 6 5 5 5 5 5 Average Carried 10 | 2 6 7 9 14 14 11 14 5 4 4 4 4 4 Final Capacity 15 | 8 10 10 15 15 15 15 15 5 5 5 5 5 5 Final Carried 15 | 3 7 8 14 15 11 12 7 5 5 5 5 4 4 Class Distribution -------------------- 47% | Mutant 20% | Scavenger-Mutant 11% | Hacker-Sprinter 9% | Scavenger-Skirmisher 3% | Hacker-Ninja 3% | Skirmisher Dominant Class ---------------- Mutant | -10/Materials Mutant | -10/Mines Scavenger-Mutant | -9/Materials Mutant | -9/Mines Mutant | -9/Exiles Skirmisher | -8/Mines Scavenger-Mutant | -8/Materials Hacker-Ninja | -7/Factory Hacker-Sprinter | -7/Lower Caves Hacker-Sprinter | -7/Lower Caves Hacker-Sprinter | -6/Factory Hacker-Sprinter | -5/Factory Hacker-Sprinter | -4/Factory Resources | -11 -10 -10 -9 -9 -9 -8 -8 -7 -7 -7 -6 -5 -4 ----------- Run | Yrd Mat Min Mat Min Exi Min Mat Fac Low Low Fac Fac Fac Matter Collected 3354 | 408 64 40 661 248 . 147 1140 134 185 . 28 52 247 Remotely . | . . . . . . . . . . . . . . Salvage Created 3558 | 143 95 113 940 286 . 118 1301 . 153 . 135 205 69 Parts 233 | 11 10 6 61 12 . 13 82 . 4 . 8 13 13 Haulers Intercepted 9 | . 1 . 5 . . . 2 . . . . 1 . Recyclers Shooed 5 | 1 . . . 2 . . 2 . . . . . . Parts Field Recycled . | . . . . . . . . . . . . . . Retrieved Matter . | . . . . . . . . . . . . . . Parts Self-Destructed 2 | . . . . . . . . . 2 . . . . Prevented . | . . . . . . . . . . . . . . Parts Restored . | . . . . . . . . . . . . . . Kills | -11 -10 -10 -9 -9 -9 -8 -8 -7 -7 -7 -6 -5 -4 ------- Run | Yrd Mat Min Mat Min Exi Min Mat Fac Low Low Fac Fac Fac Combat Hostiles Destroyed 89 | . 3 2 14 11 . 10 25 . 11 . 3 4 6 Melee 7 | . . . . . . . . . 1 . 2 4 . Guns 42 | . 3 2 14 4 . . 19 . . . . . . AOE 40 | . . . . 7 . 10 6 . 10 . 1 . 6 Classes Destroyed 14 | 3 2 1 3 1 . 1 2 . 1 . . . . Worker 7 | 1 . 1 3 . . . 1 . . . . 1 . Builder 2 | . . . . . . . 2 . . . . . . Tunneler 8 | 4 . . 1 1 . . 2 . . . . . . Hauler 9 | . 1 . 5 . . . 2 . . . . 1 . Recycler 4 | 1 . . 1 1 . . 1 . . . . . . Operator 3 | . . . 1 . . . 2 . . . . . . Watcher 6 | . . . 4 . . . 2 . . . . . . Swarmer 41 | . 3 . 7 . . 7 6 . 7 . 1 4 6 Grunt 23 | . . 2 4 4 . 2 9 . 1 . 1 . . Brawler 2 | . . . . . . 1 . . 1 . . . . Duelist 2 | . . . . . . . . . 1 . 1 . . Sentry 11 | . . . 3 . . . 7 . 1 . . . . Hunter 3 | . . . . . . . 3 . . . . . . Assembled 7 | . . . . 7 . . . . . . . . . Best Kill Streak 9 | 2 3 2 6 9 . 4 7 . 7 . 3 4 5 Combat Bots Only 8 | . 3 2 4 8 . 4 6 . 7 . 3 4 5 Max Kills in Single Turn 4 | 1 1 1 2 3 . 4 3 . 3 . 1 1 3 Gunslinging 1 | . . . 1 . . . . . . . . . . Exploded 4 | . . . . 3 . 4 3 . 3 . 1 . 3 Melee 1 | . . . . . . . . . 1 . 1 1 . Uniques/NPCs Destroyed . | . . . . . . . . . . . . . . Combat | -11 -10 -10 -9 -9 -9 -8 -8 -7 -7 -7 -6 -5 -4 -------- Run | Yrd Mat Min Mat Min Exi Min Mat Fac Low Low Fac Fac Fac Hostile Shots Fired 535 | . 22 4 111 41 . 13 106 . 46 . 5 40 147 Missed 182 | . 5 2 31 10 . 6 25 . 22 . 2 10 69 Hits 353 | . 17 2 80 31 . 7 81 . 24 . 3 30 78 Melee 27 | . . . . . . . . . . . . . 27 Projectile 326 | . 17 2 80 31 . 7 81 . 24 . 3 30 51 AOE 4 | . . . . . . . . . . . . . 4 Critical Strikes 20 | . . . 1 . . . 3 . . . . 3 13 Actively Blocked 1 | . . . . . . . . . . . . . 1 Damage Taken 5823 | . 143 35 800 431 . 170 1212 . 235 . 74 946 1777 Core 1994 | . 37 17 103 87 . 5 117 . 27 . 19 416 1166 Absorbed by Shields . | . . . . . . . . . . . . . . Core Remaining (%) 79 | 100 . 78 . . . 51 78 . . 96 97 58 . Volleys Fired 307 | 23 9 5 105 39 . 9 102 . 10 . 1 . 4 Largest 2 | 2 2 2 2 2 . 1 2 . 1 . 1 . 1 Hottest 53 | 40 40 40 40 40 . 30 53 . 36 . 36 . 36 Shots Fired 567 | 46 18 10 210 67 . 9 192 . 10 . 1 . 4 Gun 529 | 46 18 10 210 60 . . 185 . . . . . . Cannon . | . . . . . . . . . . . . . . Launcher 38 | . . . . 7 . 9 7 . 10 . 1 . 4 Special . | . . . . . . . . . . . . . . Kinetic 529 | 46 18 10 210 60 . . 185 . . . . . . Thermal . | . . . . . . . . . . . . . . Explosive 38 | . . . . 7 . 9 7 . 10 . 1 . 4 Electromagnetic . | . . . . . . . . . . . . . . Robot Hit Streak 16 | 5 5 7 11 7 . 5 16 . 1 . 2 . 1 Robot Miss Streak 6 | 2 3 1 6 2 . . 5 . 1 . . . 1 Penetration Max 1 | . . . . . . . 1 . . . . . . Secondary Targets 5 | . 1 . 3 1 . . . . . . . . . Max Gunslinging Chain 1 | . 1 . 1 1 . . . . . . . . . Shots Hit Robots 351 | 27 9 7 119 38 . 4 123 . 4 . 5 12 3 Core Hits 216 | 7 5 5 43 29 . 18 66 . 23 . 7 5 8 Critical Kills 2 | . . . 1 . . . 1 . . . . . . Critical Parts Destroyed 3 | . 1 . 1 1 . . . . . . . . . Critical Strikes 6 | . 1 . 2 1 . . 1 . . . . 1 . Destroy 5 | . 1 . 2 1 . . 1 . . . . . . Sever 1 | . . . . . . . . . . . . 1 . Melee Attacks 117 | . . . . . . . . 3 10 . 27 51 26 Impact . | . . . . . . . . . . . . . . Slashing 117 | . . . . . . . . 3 10 . 27 51 26 Piercing . | . . . . . . . . . . . . . . Sneak Attacks 4 | . . . . . . . . . . . . 4 . Combat Hostiles . | . . . . . . . . . . . . . . Follow-up Attacks . | . . . . . . . . . . . . . . Damage Inflicted 8576 | 314 113 105 1423 758 . 540 2891 . 1091 . 255 513 573 Guns 4419 | 314 113 96 1408 386 . . 2102 . . . . . . Cannons . | . . . . . . . . . . . . . . Explosions 3280 | . . . . 372 . 535 733 . 1020 . 135 . 485 Melee 771 | . . . . . . . . . 71 . 120 513 67 Ramming 106 | . . 9 15 . . 5 56 . . . . . 21 Kinetic 4419 | 314 113 96 1408 386 . . 2102 . . . . . . Thermal . | . . . . . . . . . . . . . . Explosive 3280 | . . . . 372 . 535 733 . 1020 . 135 . 485 Electromagnetic . | . . . . . . . . . . . . . . Impact . | . . . . . . . . . . . . . . Slashing 771 | . . . . . . . . . 71 . 120 513 67 Piercing . | . . . . . . . . . . . . . . Highest Corruption 7 | . . . 2 2 2 2 1 . . . . 2 7 Average Corruption 1 | . . . 2 2 2 2 1 . . . . 2 6 Corruption Purged . | . . . . . . . . . . . . . . Corruption Blocked . | . . . . . . . . . . . . . . Effects 49 | . . . 8 16 5 7 8 . . . . 2 3 Message Errors 13 | . . . 2 5 2 1 3 . . . . . . Matter Fused 12 | . . . 2 3 . 4 1 . . . . 1 1 Heat Flow Errors 6 | . . . 3 1 . . 1 . . . . . 1 Energy Discharges 5 | . . . . 2 . 1 2 . . . . . . Parts Rejected 1 | . . . . 1 . . . . . . . . . Data Loss (minor) 8 | . . . 1 2 2 . 1 . . . . 1 1 Data Loss (major) 2 | . . . . . 1 1 . . . . . . . Alerts 2 | . . . . 2 . . . . . . . . . Overload Shots . | . . . . . . . . . . . . . . Overflow Damage 125 | . . . . . . 10 7 . 14 . 7 78 9 Projectiles . | . . . . . . . . . . . . . . Explosions 31 | . . . . . . 10 . . 14 . 7 . . Melee 94 | . . . . . . . 7 . . . . 78 9 Knockbacks 1 | . . . 1 . . . . . . . . . . Impact 1 | . . . 1 . . . . . . . . . . Kinetic . | . . . . . . . . . . . . . . Secondary . | . . . . . . . . . . . . . . Self-Inflicted Damage 96 | . . . . . . 70 . . . . 17 . 9 Shots 4 | . . . . . . 3 . . . . 1 . . Rammed 8 | . . 1 1 . . 1 1 . . . . . 4 Targets Rammed 16 | . . 1 2 . . 1 8 . . . . . 4 Kicked 7 | . . . . . . . 7 . . . . . . Crushed 1 | . . . 1 . . . . . . . . . . Highest Temperature 154 | . . 2 154 97 . 2 127 . 13 5 6 . 129 Average Temperature 14 | . . 2 14 15 . 2 16 . 7 5 6 . 10 Received Heat Transfer 834 | . . 18 150 171 . 54 369 . 33 . 27 . 12 Siege Activations . | . . . . . . . . . . . . . . Martial Activations . | . . . . . . . . . . . . . . Shielding Activations . | . . . . . . . . . . . . . . Robots Disrupted . | . . . . . . . . . . . . . . Combat Hostiles . | . . . . . . . . . . . . . . Robots Corrupted . | . . . . . . . . . . . . . . Combat Hostiles . | . . . . . . . . . . . . . . Parts Fried 1 | . . . . . . . 1 . . . . . . Impact Corruptions 1 | . . . . . . . 1 . . . . . . Robots Melted . | . . . . . . . . . . . . . . Combat Hostiles . | . . . . . . . . . . . . . . Parts Melted . | . . . . . . . . . . . . . . Heat Transferred . | . . . . . . . . . . . . . . Parts Sabotaged . | . . . . . . . . . . . . . . Parts Stolen . | . . . . . . . . . . . . . . Parts Stripped . | . . . . . . . . . . . . . . Power Chain Reactions . | . . . . . . . . . . . . . . Alert | -11 -10 -10 -9 -9 -9 -8 -8 -7 -7 -7 -6 -5 -4 ------- Run | Yrd Mat Min Mat Min Exi Min Mat Fac Low Low Fac Fac Fac Maximum Alert Level 1 | . . . . . . . 1 . . . . 1 1 Low Security (%) 96 | 100 100 100 100 100 . 100 99 100 . . 100 84 48 Level 1 3 | . . . . . . . . . . . . 15 51 Level 2 . | . . . . . . . . . . . . . . Level 3 . | . . . . . . . . . . . . . . Level 4 . | . . . . . . . . . . . . . . Level 5 . | . . . . . . . . . . . . . . High Security . | . . . . . . . . . . . . . . Max Security . | . . . . . . . . . . . . . . Peak Influence 257 | 5 90 50 168 66 . 155 201 77 . . 120 253 257 Initial 119 | . . 16 1 48 . . 33 77 . . 84 35 119 Average 56 | . 16 4 54 10 . 92 86 20 . . 98 60 185 Influence Increases 3076 | 30 107 70 450 138 . 265 772 25 260 . 90 426 443 Destroy 0b10 Robot/C 1640 | . 60 40 280 80 . 200 500 . 220 . 60 80 120 Destroy 0b10 Robot/NC 195 | 30 5 5 75 10 . . 60 . . . . 10 . Destroy Leader 320 | . 12 10 68 20 . 30 148 . 10 . . 12 10 Successful Hack 36 | . . . 12 . . . . 7 . . 5 12 . Disable Machine 75 | . 15 15 . . . . 15 . . . . . 30 Destroy Structure 270 | . . . . 13 . 35 34 3 . . 25 72 88 Partial Spotted 15 | . . . . . . . . . . . . . 15 Lose Combat Pursuer 525 | . 15 . 15 15 . . 15 15 30 . . 240 180 Influence Decreases 2858 | 30 63 110 328 264 . 180 685 182 95 45 151 255 470 Entered New Map 513 | . . 28 3 78 . . 52 95 6 35 51 39 126 Time Decay 2079 | 30 63 82 325 176 . 180 563 87 79 10 90 180 214 Lost Part 266 | . . . . 10 . . 70 . 10 . 10 36 130 Squads Dispatched 15 | . . . 1 . . . 4 2 . . 1 3 4 Investigation 2 | . . . . . . . 1 . . . . . 1 Extermination 4 | . . . . . . . . 1 . . 1 1 1 Reinforcement 9 | . . . 1 . . . 3 1 . . . 2 2 Assault . | . . . . . . . . . . . . . . Garrison . | . . . . . . . . . . . . . . Intercept . | . . . . . . . . . . . . . . Searches Triggered . | . . . . . . . . . . . . . . Construction Impeded 1 | . . . . . . . 1 . . . . . . Haulers Reinforced . | . . . . . . . . . . . . . . Active Scanning Responses . | . . . . . . . . . . . . . . Cargo Convoy Interrupts . | . . . . . . . . . . . . . . Stealth | -11 -10 -10 -9 -9 -9 -8 -8 -7 -7 -7 -6 -5 -4 --------- Run | Yrd Mat Min Mat Min Exi Min Mat Fac Low Low Fac Fac Fac Distress Signals 12 | . . . 4 1 . 1 4 . . . . 1 1 Communications Jammed . | . . . . . . . . . . . . . . Distress Signals . | . . . . . . . . . . . . . . Times Spotted 159 | . 4 2 34 18 . 6 37 2 10 . 4 9 33 Peak Tracking Total 19 | . 3 2 6 10 . 3 8 2 7 . 4 11 19 Tactical Retreats 18 | . 1 . 1 1 . . 1 1 2 . . 7 4 Traps | -11 -10 -10 -9 -9 -9 -8 -8 -7 -7 -7 -6 -5 -4 ------- Run | Yrd Mat Min Mat Min Exi Min Mat Fac Low Low Fac Fac Fac Traps Triggered 10 | . . . 2 . . . 2 2 . . 1 1 2 Indirectly . | . . . . . . . . . . . . . . Trap Hack Attempts . | . . . . . . . . . . . . . . Triggered . | . . . . . . . . . . . . . . Disarmed . | . . . . . . . . . . . . . . Reprogrammed . | . . . . . . . . . . . . . . Reused . | . . . . . . . . . . . . . . Traps Extracted . | . . . . . . . . . . . . . . Installed . | . . . . . . . . . . . . . . Triggered . | . . . . . . . . . . . . . . Machines | -11 -10 -10 -9 -9 -9 -8 -8 -7 -7 -7 -6 -5 -4 ---------- Run | Yrd Mat Min Mat Min Exi Min Mat Fac Low Low Fac Fac Fac Machines Disabled 5 | . 1 1 . . . . 1 . . . . . 2 Max in Single Turn 1 | . 1 1 . . . . 1 . . . . . 1 Garrison Access 1 | . . . . . . . . . . . . . 1 Machines Repaired . | . . . . . . . . . . . . . . Machines Dismantled . | . . . . . . . . . . . . . . Machines Sabotaged . | . . . . . . . . . . . . . . Overloaded Fab Kills . | . . . . . . . . . . . . . . Hacking | -11 -10 -10 -9 -9 -9 -8 -8 -7 -7 -7 -6 -5 -4 --------- Run | Yrd Mat Min Mat Min Exi Min Mat Fac Low Low Fac Fac Fac Machines Accessed 22 | . . 1 5 . 2 . 3 1 . . 1 5 4 Terminals 16 | . . . 4 . . . 3 1 . . 1 5 2 Fabricators 1 | . . . . . . . . . . . . . 1 Repair Stations . | . . . . . . . . . . . . . . Recycling Units . | . . . . . . . . . . . . . . Scanalyzers 1 | . . . 1 . . . . . . . . . . Garrison Access 1 | . . . . . . . . . . . . . 1 Total Hacks 51 | . . 1 17 . 2 . 7 1 . . 3 14 6 Successful 30 | . . 1 11 . 2 . 3 1 . . 3 5 4 Failed 20 | . . . 5 . . . 4 . . . . 9 2 Catastrophic 4 | . . . . . . . 1 . . . . 3 . Database Lockouts 1 | . . . 1 . . . . . . . . . . Manual 32 | . . . 10 . 1 . 7 1 . . . 12 1 Terminals 36 | . . . 9 . . . 7 1 . . 3 14 2 Fabricators 2 | . . . . . . . . . . . . . 2 Repair Stations . | . . . . . . . . . . . . . . Recycling Units . | . . . . . . . . . . . . . . Scanalyzers 8 | . . . 8 . . . . . . . . . . Garrison Access 2 | . . . . . . . . . . . . . 2 Terminal Hacks 19 | . . 1 3 . 2 . 3 1 . . 3 5 1 Record 4 | . . . . . 1 . . . . . 1 2 . Part Schematic 2 | . . . . . . . . 1 . . . 1 . Robot Analysis 2 | . . . 2 . . . . . . . . . . Open Door 1 | . . 1 . . . . . . . . . . . Level Access Points 2 | . . . . . . . . . . . 1 1 . Repair Station Index 1 | . . . . . . . . . . . 1 . . Alert Level 2 | . . . 1 . . . 1 . . . . . . Transport Status 1 | . . . . . . . 1 . . . . . . Recall Investigation 1 | . . . . . . . . . . . . . 1 Recall Extermination 1 | . . . . . . . . . . . . 1 . Hauler Manifests 1 | . . . . . . . 1 . . . . . . Proto ID Catalog 1 | . . . . . 1 . . . . . . . . Fabricator Hacks 2 | . . . . . . . . . . . . . 2 Load Schematic 1 | . . . . . . . . . . . . . 1 Build 1 | . . . . . . . . . . . . . 1 Repair Station Hacks . | . . . . . . . . . . . . . . Recycling Unit Hacks . | . . . . . . . . . . . . . . Scanalyzer 8 | . . . 8 . . . . . . . . . . Insert Component 3 | . . . 3 . . . . . . . . . . Analyze 5 | . . . 5 . . . . . . . . . . Garrison Access Hacks 1 | . . . . . . . . . . . . . 1 Seal Access 1 | . . . . . . . . . . . . . 1 Unauthorized Hacks . | . . . . . . . . . . . . . . Terminals . | . . . . . . . . . . . . . . Fabricators . | . . . . . . . . . . . . . . Repair Stations . | . . . . . . . . . . . . . . Recycling Units . | . . . . . . . . . . . . . . Scanalyzers . | . . . . . . . . . . . . . . Garrison Access . | . . . . . . . . . . . . . . Data Cores Recovered . | . . . . . . . . . . . . . . Used . | . . . . . . . . . . . . . . Hacking Detections 13 | . . . 3 . . . 3 1 . . 1 3 2 Full Trace Events 1 | . . . . . . . . . . . . . 1 Feedback Events . | . . . . . . . . . . . . . . Feedback Blocked . | . . . . . . . . . . . . . . Robot Schematics Acquired . | . . . . . . . . . . . . . . Robots Built . | . . . . . . . . . . . . . . Authchips . | . . . . . . . . . . . . . . Time . | . . . . . . . . . . . . . . Total Robot Build Rating . | . . . . . . . . . . . . . . Part Schematics Acquired 5 | . . . 3 . . . . 1 . . . 1 . Parts Built 1 | . . . . . . . . . . . . . 1 Authchips . | . . . . . . . . . . . . . . Time 67 | . . . . . . . . . . . . . 67 Total Part Build Rating 4 | . . . . . . . . . . . . . 4 Part Studies Acquired . | . . . . . . . . . . . . . . Parts Repaired . | . . . . . . . . . . . . . . Time . | . . . . . . . . . . . . . . Parts Recycled . | . . . . . . . . . . . . . . Recycled Matter . | . . . . . . . . . . . . . . Retrieved Matter . | . . . . . . . . . . . . . . Retrieved Components . | . . . . . . . . . . . . . . Parts Scanalyzed 3 | . . . 3 . . . . . . . . . . Part Schematics Acquired 3 | . . . 3 . . . . . . . . . . Parts Damaged 1 | . . . 1 . . . . . . . . . . Bothacking | -11 -10 -10 -9 -9 -9 -8 -8 -7 -7 -7 -6 -5 -4 ------------ Run | Yrd Mat Min Mat Min Exi Min Mat Fac Low Low Fac Fac Fac Used RIF Installer . | . . . . . . . . . . . . . . Robots Hacked . | . . . . . . . . . . . . . . Non-combat . | . . . . . . . . . . . . . . Combat . | . . . . . . . . . . . . . . Robot Hacks Applied . | . . . . . . . . . . . . . . Relay Couplers Released . | . . . . . . . . . . . . . . Fabnet Peak Effective % . | . . . . . . . . . . . . . . Robots Rewired . | . . . . . . . . . . . . . . Allies Hacked . | . . . . . . . . . . . . . . Hacks Repelled . | . . . . . . . . . . . . . . Allies | -11 -10 -10 -9 -9 -9 -8 -8 -7 -7 -7 -6 -5 -4 -------- Run | Yrd Mat Min Mat Min Exi Min Mat Fac Low Low Fac Fac Fac Total Allies . | . . . . . . . . . . . . . . Largest Group . | . . . . . . . . . . . . . . Highest-Rated Group . | . . . . . . . . . . . . . . Highest-Rated Ally . | . . . . . . . . . . . . . . Total Orders . | . . . . . . . . . . . . . . Ally Attacks . | . . . . . . . . . . . . . . Total Damage . | . . . . . . . . . . . . . . Kills . | . . . . . . . . . . . . . . Allies Corrupted . | . . . . . . . . . . . . . . Allies Melted . | . . . . . . . . . . . . . . Intel | -11 -10 -10 -9 -9 -9 -8 -8 -7 -7 -7 -6 -5 -4 ------- Run | Yrd Mat Min Mat Min Exi Min Mat Fac Low Low Fac Fac Fac Active Infowar (turns) 5289 | 136 431 782 833 . 65 374 829 390 275 27 189 576 382 Sensors 74 | . . . . . . . . . . . . . 74 Terrain 1265 | . . . . . 65 374 826 . . . . . . Structural 713 | . . . . . . . . 389 275 27 22 . . Seismic 2182 | 136 431 782 833 . . . . . . . . . . Machine Analysis 1842 | . . . . . . . 3 390 275 27 189 576 382 Jamming 394 | . . . . . . . . 21 . . 31 342 . ECM 3 | . . . . . . . . . . . . 1 2 Robot Analysis Total 2 | . . . 2 . . . . . . . . . . Derelict Logs Recovered 5 | . . . . 2 . . . . 3 . . . . Drone Launches . | . . . . . . . . . . . . . . Drone Recoveries . | . . . . . . . . . . . . . . Exploration | -11 -10 -10 -9 -9 -9 -8 -8 -7 -7 -7 -6 -5 -4 ------------- Run | Yrd Mat Min Mat Min Exi Min Mat Fac Low Low Fac Fac Fac Turns Passed 9513 | 305 431 782 1971 988 718 374 2047 390 275 27 189 576 440 Spaces Moved 8519 | 142 238 477 941 548 406 212 1185 685 872 100 475 1060 1178 Core 122 | 5 . . . . . . 7 . . . . 1 109 Treads 3217 | 137 238 477 941 548 406 212 258 . . . . . . Legs 917 | . . . . . . . 917 . . . . . . Wheels . | . . . . . . . . . . . . . . Hover . | . . . . . . . . . . . . . . Flight 4263 | . . . . . . . 3 685 872 100 475 1059 1069 Fastest Speed 20 | 50 160 160 160 160 160 160 98 25 25 25 25 23 20 Average Speed 88 | 156 160 160 160 160 160 160 137 25 25 25 25 28 27 Slowest Speed 600 | 160 160 160 160 160 160 160 600 25 28 25 25 105 104 Overloaded Moves . | . . . . . . . . . . . . . . Propulsion Burnouts . | . . . . . . . . . . . . . . Robots Hopped 2 | . . . . . . . . 1 . . . 1 . Potential Cave-ins . | . . . . . . . . . . . . . . Cave-ins Triggered . | . . . . . . . . . . . . . . Exploration Rate (%) 45 | 6 30 92 63 91 87 38 49 15 94 19 9 26 23 Regions Visited 13 Branch Regions 6 Pre-discovered Areas 1 | . . . . . 1 . . . . . . . . Known Exits Taken 5 | . . . . . . 1 1 . 1 . 1 1 . Unknown Exits Taken 8 | 1 1 1 1 1 1 . . 1 . 1 . . . Scrap Searched 10 | . . 3 . 1 . . . . 5 1 . . . Spaces Dug 88 | . . . . . . . . 3 7 . 19 36 23 Terrain Destroyed 256 | . . . . 23 . 49 39 3 42 . 24 36 40 Melee 88 | . . . . . . . . 3 7 . 19 36 23 Projectile 2 | . . . . . . . 2 . . . . . . AOE 166 | . . . . 23 . 49 37 . 35 . 5 . 17 Terrain Rammed . | . . . . . . . . . . . . . . Walls Destroyed . | . . . . . . . . . . . . . . Machines Disabled . | . . . . . . . . . . . . . . Actions | -11 -10 -10 -9 -9 -9 -8 -8 -7 -7 -7 -6 -5 -4 --------- Run | Yrd Mat Min Mat Min Exi Min Mat Fac Low Low Fac Fac Fac Total 9810 | 177 270 485 1213 597 477 234 1441 897 896 101 511 1264 1247 Wait 599 | . 20 2 125 4 58 6 60 180 . . . 131 13 Move 8502 | 141 237 476 940 547 405 211 1184 682 871 99 474 1057 1178 Hop 2 | . . . . . . . . 1 . . . 1 . Pick Up 55 | 5 3 . 12 2 1 . 20 1 1 1 2 3 4 Fast Attach 37 | 6 . . 1 . . . 8 3 1 . 2 9 7 Attach 30 | 1 . . 2 1 4 . 8 2 . . 1 6 5 Detach 10 | . . . . . 3 . 2 . . . . 3 2 Swap 54 | . 1 1 13 3 2 7 21 . 2 . 2 . 2 Drop 60 | 1 . . 13 1 4 . 28 4 1 1 2 3 2 Fire 307 | 23 9 5 105 39 . 9 102 . 10 . 1 . 4 Melee 117 | . . . . . . . . 3 10 . 27 51 26 Ram 4 | . . . . . . . . . . . . . 4 Kick 7 | . . . . . . . 7 . . . . . . Crush 5 | . . 1 2 . . 1 1 . . . . . . Escape Stasis 21 | . . . . . . . . 21 . . . . . Rewire . | . . . . . . . . . . . . . . Trap . | . . . . . . . . . . . . . . Miscellaneous . | . . . . . . . . . . . . . . Route ------- -11/Scrapyard -10/Materials -10/Mines (discovered 2 exits: *Mat / [*Sub]) -9/Materials (discovered 5 exits: *Mat x2 / [*Min x2] / [*Sto]) -9/Mines (discovered 3 exits: *Mat x2 / *Exi) -9/Exiles -8/Mines -8/Materials (discovered 2 exits: *Fac x2) -7/Factory -7/Lower Caves -7/Lower Caves -6/Factory (discovered 5 exits: *Fac x4 / Low) -5/Factory (discovered 5 exits: *Fac x4 / Ext) -4/Factory (discovered 1 exit: [*Res]) History --------- Turn | Location | Event 7 | -11/Scrapyard | Discovered new exit (range 16) 306 | -11/Scrapyard | Entered Materials 307 | -10/Materials | Build established: Mutant 688 | -10/Materials | Discovered new exit (range 13) 737 | -10/Materials | Entered Mines 1135 | -10/Mines | Discovered new exit (range 10) 1188 | -10/Mines | Met a Derelict who couldn't figure out how to use a Trap Extractor 1502 | -10/Mines | Discovered new exit (range 11) 1519 | -10/Mines | Entered Materials 1519 | -9/Materials | Evolved 2 slots: Propulsion x1, Utility x1 1948 | -9/Materials | Discovered new exit (range 16) 2166 | -9/Materials | Discovered new exit (range 15) 2350 | -9/Materials | Build established: Scavenger-Mutant 2626 | -9/Materials | Discovered new exit (range 12) 2740 | -9/Materials | Discovered new exit (range 7) 3300 | -9/Materials | Discovered new exit (range 7) 3303 | -9/Materials | Central database locked down 3490 | -9/Materials | Entered Mines 3503 | -9/Mines | Assembled infested the area 3514 | -9/Mines | Learned location of 1 exit from Materials 3570 | -9/Mines | Build established: Mutant 3574 | -9/Mines | Destroyed 8 combat bots 3630 | -9/Mines | Discovered new exit (range 10) 4253 | -9/Mines | Identified exit to Materials 4467 | -9/Mines | Deemed a non-threat by the Exiles lab entrance 4468 | -9/Mines | Discovered new exit (range 5) 4478 | -9/Mines | Entered Exiles 4520 | -9/Exiles | Met 8R-AWN 4549 | -9/Exiles | Met EX-HEX 4597 | -9/Exiles | Met EX-BIN 4615 | -9/Exiles | Aligned with FarCom system 4616 | -9/Exiles | Given EX-Vault access code 4660 | -9/Exiles | Opened EX-Vault 4676 | -9/Exiles | Found PSU Rigger 4711 | -9/Exiles | Warned to stay clear of 0b10 Research branches 4763 | -9/Exiles | Met EX-DEC 4776 | -9/Exiles | Learned location of Zion (-7) 4876 | -9/Exiles | Visited The Gauntlet 5109 | -9/Exiles | Discovered new exit (range 14) 5196 | -9/Exiles | Left Exiles lab with PSU Rigger 5196 | -9/Exiles | Entered Mines 5497 | -8/Mines | Discovered exit to Materials (range 12) 5570 | -8/Mines | Entered Materials 5570 | -8/Materials | Evolved 2 slots: Propulsion x1, Utility x1 5571 | -8/Materials | Identified exit to Factory 5743 | -8/Materials | Build established: Scavenger-Skirmisher 6112 | -8/Materials | Lost 4 parts (1p3n) 6482 | -8/Materials | Discovered exit to Factory (range 10) 6695 | -8/Materials | Build established: Scavenger-Mutant 7556 | -8/Materials | Build established: Mutant 7617 | -8/Materials | Entered Factory 7617 | -7/Factory | Evolved 2 slots: Propulsion x1, Utility x1 7998 | -7/Factory | Discovered new exit (range 3) 8007 | -7/Factory | Build established: Hacker-Ninja 8007 | -7/Factory | Entered Lower Caves 8020 | -7/Lower Caves | Identified exit to Lower Caves 8052 | -7/Lower Caves | Spotted B-75 Beast 8153 | -7/Lower Caves | Learned location of 1 exit from Factory 8165 | -7/Lower Caves | Attracted the attention of an 0b10 checkpoint 8195 | -7/Lower Caves | Destroyed 7 combat bots 8219 | -7/Lower Caves | Encountered a Warlord checkpoint 8220 | -7/Lower Caves | Found DCF Scrap (12 items) 8282 | -7/Lower Caves | Entered another Lower Caves area 8306 | -7/Lower Caves | Discovered new exit (range 11) 8309 | -7/Lower Caves | Entered Factory 8309 | -6/Factory | Evolved 2 slots: Utility x2 8310 | -6/Factory | Identified exit to Lower Caves 8375 | -6/Factory | Identified exit to Factory 8498 | -6/Factory | Entered another Factory area 8498 | -5/Factory | Evolved 2 slots: Propulsion x1, Utility x1 8499 | -5/Factory | Identified exit to Extension 8633 | -5/Factory | Build established: Hacker-Sprinter 8820 | -5/Factory | Lost 8 parts (2p4n2w) 8882 | -5/Factory | Identified exit to Factory 8977 | -5/Factory | Lost 3 parts (2n1u) 9074 | -5/Factory | Entered another Factory area 9074 | -4/Factory | Evolved 2 slots: Propulsion x2 9337 | -4/Factory | Fabricated Cld. VTOL Module? 9437 | -4/Factory | Discovered new exit (range 14) 9438 | -4/Factory | Spotted B-86 Titan 9456 | -4/Factory | Released all parts (8) 9471 | -4/Factory | Core integrity fell below 50% 9483 | -4/Factory | Lost 10 parts (1p6n3u) 9488 | -4/Factory | Core integrity fell below 20% 9514 | -4/Factory | Destroyed by C-35 Carver with Carbide Saw Last Messages --------------- 09456_ Released Katana. 09456_ Released Adv. Signal Interpreter. 09456_ Released Adv. Weight Redist. System. 09456_ Released Imp. Deuterium Engine. 09456_ Released Adv. ECM Suite. 09456_ Slammed into H-77 Assassin. 09462_ Penetrated by Slug. 09464_ U-05 Engineer destroyed. 09467_ K-01 Serf collects debris. 09473_ System corrupted: Matter fused (-7). 09474_ K-01 Serf cleans the Nuclear Reactor. 09477_ Door malfunctions. 09478_ K-01 Serf cleans the Nuclear Reactor. 09484_ P-70 Sage resets C-35 Carver, system corruption cleaned. 09491_ Slammed into U-05 Engineer. 09496_ O-24 Administrator: "IFF HANDSHAKE FAILED. SECURING TERMINAL." 09497_ System corrupted: Component data lost. 09502_ ALERT: Hostiles spotted, dispatching reinforcements to Terminal F006. 09512_ Acquired Nanoactuators. Map ----- +----------------------------------------------------+ | ?????????????????????????????#!!! ??? | | ?????????????????????????????#!! """"" ??? | | ?????????????????????????????#!! / """"???????? | | ?????????????????????????????# """ ??????? | | ?????????????????????????????# ??? | | ?????????????????????????????# """ """"" ??? | | ?????????????????????????????+ """ """"" ?? | | ?????????????????????????????# """ """ ?? | | ?????????????????????????????# ?? | | ?????????????????????????????# ] ??? | | ?????????????????????????????# ##?????? | | ?????????????????????????????# ###????? | | ?????????????????????????????# p +????? | | ?????????????????????????? # ###????? | | ?????????????????????????? + #??????? | | ?????????????????????????? p# #??????? | | ?????????????????????????? # #??????? | | ??????????????????????????? ##### ########??????? | | ??????????????????????????? ????# #?????????????? | | ??????????????????????????? ????# #?????????????? | | ??????????????????????????? #???# #?????????????? | | ???????????????????????????#/#???# #?????????????? | | ???????????????????????????# #???# #?????????????? | | ???????????????????????????# #???# #?????????????? | | ?????????????????########### ##### #?????????????? | | ?????????????????# @ # #?????????????? | | ?????????????????# ccc# ###+#?????????????? | | ?????????????????# c # #?? ??????????????? | | ?????????????????# + +?? ??????????????? | | ?????????????????# #####?? ??????????????? | | ?????????????????# #?????? ??????????????? | | ?????????????????# #?????? ??????????????? | | ?????????????????# #?????????????????????? | | ?????????????????###########?????????????????????? | | ?????????????????????????????????????????????????? | | ?????????????????????????????????????????????????? | | ?????????????????????????????????????????????????? | | ?????????????????????????????????????????????????? | | ?????????????????????????????????????????????????? | | ?????????????????????????????????????????????????? | | ?????????????????????????????????????????????????? | | ?????????????????????????????????????????????????? | | ?????????????????????????????????????????????????? | | ?????????????????????????????????????????????????? | | ?????????????????????????????????????????????????? | | ?????????????????????????????????????????????????? | | ?????????????????????????????????????????????????? | | ?????????????????????????????????????????????????? | | ?????????????????????????????????????????????????? | | ?????????????????????????????????????????????????? | +----------------------------------------------------+ Best States ------------- Heat Dissipation 43 Energy Generation 18 Energy Capacity 290 Matter Stores 300 Matter Capacity 300 Sight Range 16 Robot Scan Range 16 Terrain Scan Range 16 Terrain Scan Density 85 Jamming Range 12 Additional Mass Support 9 Armor Coverage 375 Melee Speed Boost 20 Evasion (%) 66 Targeting Accuracy 8 Recoil Reduction 4 Offensive Hacking 30 Defensive Hacking 10 Item Schematics ----------------- Lgt. Armor Plating | -9/Materials | Scanalyzed VTOL Module | -9/Materials | Scanalyzed Lgt. Angular Momentum Engine | -9/Materials | Scanalyzed Hacking Suite | -7/Factory | Hacked Cld. VTOL Module | -5/Factory | Hacked Robot Schematics ------------------ None Fabricated ------------ Cld. VTOL Module | x1 | -4/Factory Repaired ---------- Nothing Studied --------- None Alien Tech Used ----------------- None Achievements -------------- Deductive Reasoning Dramatic Entrance I Spy We Love MA Challenges ------------ None Game ------ Seed SeismicAutogunGenerator Manual? 0 Play Time 01:45:25 Cumulative 14.7 hours Start 2026.09.19 @ 10:52:57 End 2026.09.19 @ 15:02:52 Sessions 3 Manual Loads 0 Difficulty Rogue Special Mode None Game No. 26 Rogue 26 Adventurer 0 Explorer 0 Win Type - Total 0 Types 0/0/0/0/0/0/0/0/0/0 Lore% 14 Gallery% 16 Achievement% 17 Wizard Run 0 Options --------- Layout 0 ASCII 0 Keyboard 1 Movement Vi Keybinds 1 Fullscreen 1 Font 24/Smallcaps Map View 76x50 Zoom Use 0% Tactical HUD 1 Map Filters NONE Filters NONE Steam 1 RUN: 5e5883e5-2e22-4155-81cf-e38e3922b5f7